[Event "1st FIDE Olympiad DIS 2023"]
[Site "Belgrade"]
[Date "2023.02.03"]
[Round "5.18"]
[White "Syed Ejaz Husain"]
[Black "Obodchuk, Andrei"]
[Result "0-1"]
[ECO "A08"]
[WhiteElo "1952"]
[BlackElo "2317"]
[Annotator "TA"]
[PlyCount "134"]
[EventDate "2023.01.30"]
[EventType "team-tourn"]
[EventCountry "SRB"]
[SourceTitle "playchess.com"]
[Source "ChessBase"]
[SourceQuality "1"]
[WhiteTeam "Bangladesh"]
[BlackTeam "FIDE"]
[TimeControl "40/5400+30:1800+30"]

{[%evp 16,134,5,0,31,-9,0,-51,-20,-60,-59,-69,-46,-56,-20,-14,-10,-62,-54,-50,-45,-63,-63,-172,-193,-213,-200,-196,-147,-132,-138,-149,-153,-152,-138,-148,-118,-128,-72,-72,-73,-81,-74,-85,-85,-87,-49,-65,-75,-59,-39,-53,-53,-53,0,-6,-6,-8,0,0,0,-55,0,-87,-67,-89,-25,-89,-72,-101,-71,-89,-58,-70,0,-102,-2,-5,-9,-8,0,0,0,-3,0,0,0,-258,-232,-756,-756,-748,-654,-727,-727,-12816,-11122,-653,-528,-12644,-10896,-2128,-1687,-1687,-1558,-638,-62,-147,-54,-12845,-12837,-12833,-12833,-12833,-12833,-12848,-12834,-12849,-12849,-12850,-12850]} 1. e4 {[%emt 0:06:05]} c5 {[%emt 0:00:22]} 2. Nf3 {[%emt 0:00:15]} e6 {[%emt 0:00:10]} 3. d3 {[%emt 0:00:27]} Nc6 {[%emt 0:00:18]} 4. g3 {[%emt 0:00:18]} d5 {[%emt 0:00:24]} 5. Nbd2 {[%emt 0:00:18]} g6 {[%emt 0:00:28]} 6. Bg2 {[%emt 0:00:32]} Bg7 {[%emt 0:00:10]} 7. O-O {[%emt 0:02:10]} Nf6 {[%emt 0:00:15]} 8. Re1 {[%emt 0:03:49]} O-O {[%emt 0:02:57]} 9. c3 {[%emt 0:01:18]} e5 {[%emt 0:11:24] A08: King's Indian Attack.} 10. Qc2 {[%emt 0:03:50]} b6 {[%emt 0:01:30]} 11. Nf1 {[%emt 0:03:56] [#]} (11. a4 $11) 11... h6 $146 {[%emt 0:00:39] Black is slightly better.} ({Predecessor:} 11... Bb7 12. Bg5 d4 13. Qd2 Qd6 14. Rad1 Nd7 15. g4 Qe6 16. c4 Qxg4 17. h3 Qe6 {0-1 Pahl,R-Janz,F Schleswig Holstein-chB U18 1995 (2)}) 12. h4 {[%emt 0:02:33]} Be6 {[%emt 0:06:29]} 13. Bd2 {[%emt 0:08:01]} Qc7 {[%emt 0:03:14]} 14. Qc1 {[%emt 0:02:56]} dxe4 {[%emt 0:03:16]} 15. dxe4 {[%emt 0:00:35]} Kh7 {[%emt 0:04:28]} 16. b4 (16. Qc2 $1 $11) 16... c4 {[%emt 0:04:45]} 17. Qc2 {[%emt 0:03:00]} Rad8 $36 {[%emt 0:09:50][%mdl 2048] White is under pressure.} 18. Ne3 {[%emt 0:04:16]} Rd3 {[%emt 0:03:53]} 19. Bf1 {[%emt 0:00:51] [#]} ({White should try} 19. Nd1 $15) 19... Rfd8 $1 $19 {[%emt 0:00:05]} 20. Nd5 {[%emt 0:04:41]} (20. Bxd3 cxd3 21. Qd1 Nxe4) (20. b5 Nxe4) 20... Nxd5 {[%emt 0:06:49]} (20... Bxd5 21. exd5 Rxf3 22. dxc6) 21. exd5 {[%emt 0:02:26]} Bxd5 {[%emt 0:04:27]} (21... Rxf3 22. dxe6 f5 23. b5 $14 (23. Bxc4 e4 $17)) (21... R8xd5 $19 22. Bxd3 Rxd3) 22. Bxd3 $17 {[%emt 0:04:57]} cxd3 {[%emt 0:00:08]} (22... Bxf3 23. Be4 (23. Bxc4 Qd7 $17) 23... Bxe4 24. Rxe4 $15) 23. Qxd3 {[%emt 0:08:06]} Bxf3 {[%emt 0:00:28][%mdl 64] Remove Defender, Deflection} 24. Qxf3 {[%emt 0:00:14] Hoping for Rad1.} Rxd2 {[%emt 0:00:01]} 25. Red1 {[%emt 0:03:15]} e4 {[%emt 0:06:22]} 26. Qxe4 {[%emt 0:01:04]} Rd7 {[%emt 0:02:06] Black is much more active.} (26... Bxc3 27. Rxd2 Bxd2 28. a3 $15) (26... Rb2 $142 27. Qc4 Rc2) 27. Rxd7 {[%emt 0:05:01]} Qxd7 {[%emt 0:00:04]} 28. h5 {[%emt 0:03:58]} Ne5 {[%emt 0:01:38]} (28... Bxc3 $2 29. hxg6+ Kg7 30. Rc1 $18) 29. hxg6+ {[%emt 0:01:12]} fxg6 {[%emt 0:00:04]} 30. Re1 {[%emt 0:02:48][%cal Oa2a4]} Qd2 {[%emt 0:00:41]} 31. Re2 {[%emt 0:09:41]} Qxc3 {[%emt 0:00:15] aiming for ...Nf3+.} 32. Kg2 {[%emt 0:01:04] Repels Nf3} Qc8 {[%emt 0:04:03]} 33. Qd5 {[%emt 0:02:32]} Qc7 {[%emt 0:01:50]} 34. b5 {[%emt 0:04:18]} Qc3 {[%emt 0:02:47]} (34... h5 $15 {should be considered.}) 35. Qe4 $1 $11 {[%emt 0:02:31]} Qc5 {[%emt 0:03:05]} 36. a4 {[%emt 0:00:29]} Qc8 {[%emt 0:03:30]} 37. Qd5 {[%emt 0:02:16]} Qc7 {[%emt 0:01:19]} 38. Qe4 {[%emt 0:00:21] Inhibits Ng4.} (38. f4 $11 Ng4 39. f5) 38... Qd7 {[%emt 0:01:33]} (38... h5 $1 $15) 39. Re3 {[%emt 0:03:05]} (39. f4 $11 {keeps the balance.} Nf7 40. Qe6) 39... h5 $17 {[%emt 0:04:52]} 40. Re2 {[%emt 0:00:36]} Qf7 {[%emt 0:01:10]} (40... Bf6 $17 41. Qf4 Qd5+ 42. Qe4 Qd1 43. Qb7+ Kh6) 41. Re3 {[%emt 0:01:01]} (41. f4 $11 {remains equal.} Ng4 42. Qe6) 41... Bf6 {[%emt 0:03:25]} 42. Re2 {[%emt 0:00:26]} Qd7 {[%emt 0:00:58]} (42... Nd7 {simplifies} 43. Qe8 Kg7 44. Qxf7+ Kxf7 45. f4 Nc5) 43. Qf4 {[%emt 0:00:47][%csl LRe5,LRf6]} Qb7+ {[%emt 0:01:51]} 44. Qe4 $1 {[%emt 0:00:20]} Qd7 {[%emt 0:06:58]} 45. Qf4 $1 {[%emt 0:00:30][%csl LRe5,LRf6]} Qd6 {[%emt 0:00:32]} (45... Qe7 $17 46. Qe4 Qd7) 46. Rd2 $1 $11 {[%emt 0:01:10]} Qe7 {[%emt 0:01:17] ...Bg5 is the strong threat.} 47. Qe4 {[%emt 0:00:35]} Qc7 {[%emt 0:01:29]} 48. f4 $1 {[%emt 0:06:41]} Ng4 {[%emt 0:00:23] White must now prevent ...Qc5.} 49. Qc6 {[%emt 0:01:12]} Qb8 {[%emt 0:00:30] And now ...Qg8 would win.} 50. Rd7+ {[%emt 0:00:50]} Bg7 {[%emt 0:00:26] ...Qg8 would be deadly.} 51. Qc7 $2 {[%emt 0:00:52][%mdl 8192]} (51. Qe6 $11) 51... Qg8 $19 {[%emt 0:00:33] Threatens to win with ...Qa2+.} 52. Rf7 $2 {[%emt 0:11:02]} (52. Kh1) 52... Nh6 {[%emt 0:00:23]} 53. Rd7 {[%emt 0:01:30]} Qa2+ {[%emt 0:00:19]} 54. Kh3 {[%emt 0:02:04]} Nf5 {[%emt 0:01:20]} 55. Qxa7 {[%emt 0:02:27]} Qf2 {[%emt 0:02:56][%csl Gf5][%cal Rf2g3]} 56. Rxg7+ {[%emt 0:01:01]} Nxg7 {[%emt 0:00:06]} 57. a5 {[%emt 0:00:45] [#]} h4 $1 {[%emt 0:07:56]} 58. gxh4 {[%emt 0:01:25]} Qf3+ {[%emt 0:00:28]} (58... Qxf4 $2 59. axb6 Qf5+ 60. Kg3 $17) 59. Kh2 {[%emt 0:00:10]} Qxf4+ {[%emt 0:00:53]} 60. Kg2 {[%emt 0:01:43]} Kh6 $2 {[%emt 0:05:18]} ({Inferior is} 60... Qxh4 61. Qxb6 Qe4+ 62. Kf2 $17) ({Better is} 60... Qg4+ $19 61. Kf1 Qc4+ 62. Kf2 bxa5 63. Qxa5 Qc5+ 64. Ke1 Nf5) 61. Qxb6 $15 {[%emt 0:01:03] [#]} Nf5 {[%emt 0:00:26]} ({Of course not} 61... Qxh4 $6 62. Qe3+ g5 63. a6 $11) ({Black should play} 61... Qg4+ $1 $17 62. Kf2 Qxh4+ 63. Ke3 Nf5+ 64. Kd3 Qg3+ 65. Kc4 Qf4+ 66. Kb3 Qf3+ 67. Kb4 Qf4+ 68. Kc5 Qe5+ 69. Kb4 Qf4+ 70. Kc5 Qe3+ 71. Kc6 Qe4+ 72. Kc5 Qe5+ 73. Kb4 Qf4+) 62. Qc6 $2 {[%emt 0:03:10][%mdl 8192] Loses the game.} (62. Qf2 $15 Ne3+ 63. Kg1) 62... Nxh4+ {[%emt 0:02:45] Black is clearly winning.} ({Worse is} 62... Qxh4 63. Qc1+ Kg7 64. Qc7+ Kf8 65. a6 $15) 63. Kg1 {[%emt 0:00:21]} Nf3+ {[%emt 0:00:44]} 64. Kg2 {[%emt 0:00:20]} Nd4 {[%emt 0:00:56]} 65. Qd5 {[%emt 0:01:33]} Qd2+ {[%emt 0:00:14]} 66. Kf1 {[%emt 0:00:47]} Qe2+ {[%emt 0:00:07]} 67. Kg1 {[%emt 0:00:17]} Nf3+ {[%emt 0:00:01] Weighted Error Value: White=0.53/Black=0.40} 0-1

[Event "1st FIDE Olympiad DIS 2023"]
[Site "Belgrade"]
[Date "2023.02.03"]
[Round "5.18"]
[White "Deniz, Ugur"]
[Black "Glazar, Domagoj"]
[Result "0-1"]
[ECO "C47"]
[WhiteElo "1946"]
[BlackElo "2119"]
[Annotator "TA"]
[PlyCount "82"]
[EventDate "2023.01.30"]
[EventType "team-tourn"]
[EventCountry "SRB"]
[SourceTitle "playchess.com"]
[Source "ChessBase"]
[SourceQuality "1"]
[WhiteTeam "Turkey"]
[BlackTeam "Croatia"]
[WhiteTeamCountry "TUR"]
[BlackTeamCountry "CRO"]
[TimeControl "40/5400+30:1800+30"]

{[%evp 17,82,0,0,0,6,0,3,0,0,-2,12,-19,0,0,0,0,0,0,4,8,16,0,-5,-22,4,0,0,-16,-11,-88,-97,-86,-24,-82,-47,-75,-49,-48,-45,-120,-114,-157,-145,-213,-198,-209,-194,-232,-215,-316,-225,-408,-268,-439,-399,-431,-426,-716,-718,-1245,-1141,-2631,-3109,-2562,-2321,-2075,-1665]} 1. e4 {[%emt 0:00:09]} Nf6 {[%emt 0:00:15]} 2. Nc3 {[%emt 0:00:43]} e5 {[%emt 0:00:36]} 3. Nf3 {[%emt 0:00:11]} Nc6 {[%emt 0:00:22]} 4. d4 {[%emt 0:00:19]} exd4 {[%emt 0:01:05]} 5. Nxd4 {[%emt 0:00:00]} Bb4 {[%emt 0:01:04]} 6. Nxc6 {[%emt 0:00:19]} bxc6 {[%emt 0:00:10]} 7. Bd3 {[%emt 0:00:12]} d5 {[%emt 0:00:18]} 8. exd5 {[%emt 0:00:11]} O-O {[%emt 0:00:29]} 9. O-O {[%emt 0:00:27]} cxd5 {[%emt 0:00:13]} 10. h3 {[%emt 0:00:18] Dodges Bg4. C47: Scotch Four Knights and Four Knights with 4 g3.} c6 {[%emt 0:01:22]} 11. Qf3 {[%emt 0:00:10]} Be6 {[%emt 0:05:12]} 12. Bf4 {[%emt 0:01:29] The position is equal.} Bd6 {[%emt 0:03:36]} 13. Ne2 {[%emt 0:09:19]} c5 {[%emt 0:03:10]} 14. Ng3 {[%emt 0:03:07]} Rb8 {[%emt 0:02:02]} 15. b3 {[%emt 0:00:56]} Qc7 {[%emt 0:05:48]} 16. Bxd6 {[%emt 0:04:55]} Qxd6 {[%emt 0:00:11]} 17. Rad1 {[%emt 0:01:14] [#]} Qb6 $146 {[%emt 0:05:41]} ({Predecessor:} 17... Nd7 18. Rfe1 g6 19. Qe3 Rfd8 20. Qh6 Qf8 21. Qg5 c4 22. Be2 a5 23. Bf3 Nb6 {1-0 Tiarks,J (2180)-Biletskiy,D (1956) Titled Tuesday intern op 29th Mar Early blitz 2022 (6)}) 18. Bf5 {[%emt 0:41:29]} g6 {[%emt 0:08:59]} 19. Bd3 {[%emt 0:06:49]} Kg7 {[%emt 0:01:06]} 20. Rfe1 {[%emt 0:01:03]} a5 {[%emt 0:01:35]} 21. Qf4 {[%emt 0:02:26]} Rfe8 {[%emt 0:07:55]} 22. Bf1 {[%emt 0:15:53]} Qb4 {[%emt 0:04:22]} 23. Qxb4 {[%emt 0:03:05]} (23. Qc1 $11) 23... axb4 $17 {[%emt 0:00:29]} 24. Ne2 {[%emt 0:03:07]} g5 {[%emt 0:10:54] Dodges Nf4} (24... Ra8 $17 25. Ra1 Bd7) 25. Nc1 {[%emt 0:00:51]} (25. c3 $11 {remains equal.}) 25... Ne4 {[%emt 0:02:25]} 26. Nd3 {[%emt 0:00:43]} Rec8 {[%emt 0:02:47]} 27. Ra1 {[%emt 0:03:13]} Ra8 {[%emt 0:00:58]} 28. Nc1 {[%emt 0:00:51]} (28. g3 $15) 28... Nc3 {[%emt 0:01:19] Black has more active pieces. The white rooks are badly placed.} 29. Bd3 {[%emt 0:00:12]} Ra3 {[%emt 0:01:10]} 30. Ne2 {[%emt 0:00:09]} (30. Be2 $17 {keeps fighting.}) 30... Nxe2+ {[%emt 0:02:56]} ({Not} 30... Rxa2 31. Rxa2 Nxa2 32. Ra1 $17) 31. Bxe2 {[%emt 0:00:47]} Rca8 {[%emt 0:00:27]} 32. Bf3 {[%emt 0:00:18]} Rxa2 {[%emt 0:00:41]} 33. Rad1 {[%emt 0:00:11]} (33. Rac1 $142) 33... Rd8 {[%emt 0:01:38]} 34. Re5 $2 {[%emt 0:00:12] [#]} (34. Rc1) 34... h6 {[%emt 0:02:52]} 35. Rd2 $2 {[%emt 0:02:31]} (35. Re2) 35... Kf6 {[%emt 0:01:32]} 36. Ree2 {[%emt 0:00:08]} d4 {[%emt 0:01:04][%cal Od4d3] ...d3! would be deadly. Black is clearly winning.} 37. g4 {[%emt 0:00:14] [#]} (37. Be4 $142 Rc8 38. Bd3) 37... d3 $1 $19 {[%emt 0:03:27][%mdl 576] Deflection} 38. Rxd3 {[%emt 0:01:38]} (38. cxd3 Rxd2) 38... Rxd3 {[%emt 0:00:14]} 39. cxd3 {[%emt 0:00:05]} Rxe2 {[%emt 0:00:23]} 40. Bxe2 {[%emt 0:00:04]} Bxb3 {[%emt 0:00:15] Threatens to win with ...Bc2.} 41. Kf1 {[%emt 0:00:15]} Ba2 {[%emt 0:32:14] Weighted Error Value: White=0.66/Black=0.17 (very precise)} 0-1

[Event "1st FIDE Olympiad DIS 2023"]
[Site "Belgrade"]
[Date "2023.02.03"]
[Round "5.19"]
[White "Nestorovic, Vladimir"]
[Black "Donmez, Unal"]
[Result "1-0"]
[ECO "D02"]
[WhiteElo "2171"]
[BlackElo "1816"]
[Annotator "TA"]
[PlyCount "95"]
[EventDate "2023.01.30"]
[EventType "team-tourn"]
[EventCountry "SRB"]
[SourceTitle "playchess.com"]
[Source "ChessBase"]
[SourceQuality "1"]
[WhiteTeam "Croatia"]
[BlackTeam "Turkey"]
[WhiteTeamCountry "CRO"]
[BlackTeamCountry "TUR"]
[TimeControl "40/5400+30:1800+30"]

{[%evp 11,95,4,10,10,22,16,20,0,12,0,27,-11,-25,-396,150,172,174,166,175,161,229,233,230,243,420,250,479,443,965,338,310,289,365,363,370,355,367,359,365,359,375,343,430,423,412,412,381,265,254,245,412,168,270,254,807,865,1018,1002,887,846,774,700,634,543,12412,1011,11162,11109,5839,5522,29965,29963,29978,29979,29979,29980,29980,29980,29980,29981,29981,29982,29982,29983,29983,29984]} 1. d4 {[%emt 0:00:15]} d5 {[%emt 0:00:12]} 2. Nf3 {[%emt 0:00:11]} Nf6 {[%emt 0:00:22]} 3. g3 {[%emt 0:01:03]} c6 {[%emt 0:01:32]} 4. Bg2 {[%emt 0:00:17]} Bf5 {[%emt 0:01:16]} 5. O-O {[%emt 0:00:22]} e6 {[%emt 0:00:34]} 6. b3 {[%emt 0:00:08]} Bd6 {[%emt 0:00:22]} 7. Bb2 {[%emt 0:00:12] D02: 1 d4 d5 2 Nf3 sidelines, including 2...Nf6 3 g3 and 2...Nf6 3 Bf4.} Qe7 {[%emt 0:05:08]} 8. c4 {[%emt 0:00:48] [#]} h5 $146 {[%emt 0:03:41]} ({Predecessor:} 8... Nbd7 9. Nbd2 h5 10. Re1 Ne4 11. a3 h4 12. Nf1 hxg3 13. fxg3 Bh3 14. e3 Bxg2 15. Kxg2 {½-½ Collier,D (2114)-Archer Lock,A (1959) Paignton op 2012 (2)}) 9. h4 {[%emt 0:03:04] The position is equal.} Nbd7 {[%emt 0:01:34]} 10. Nc3 {[%emt 0:00:52]} Ng4 {[%emt 0:03:11]} 11. Re1 {[%emt 0:01:06]} Ndf6 {[%emt 0:00:28]} 12. Nd2 $2 {[%emt 0:01:00][%mdl 8192] [#] Inhibits Ne4.} (12. e3 $11 {and White stays safe.}) 12... Bxg3 $2 {[%emt 0:25:18]} 13. fxg3 $16 {[%emt 0:01:39]} Ne3 {[%emt 0:00:16]} 14. Qc1 {[%emt 0:00:15][%cal Od2e4] Strongly threatening Nde4!} Qc7 {[%emt 0:00:43]} 15. Nf1 {[%emt 0:00:28]} Nxf1 {[%emt 0:00:23]} (15... Nc2 $142 16. e4 Nxe1) 16. Rxf1 $18 {[%emt 0:00:14] Black must now prevent cxd5.} (16. Kxf1 Qxg3 17. e4 Ng4 $17) 16... Qxg3 {[%emt 0:02:56]} 17. Qf4 {[%emt 0:01:37]} Qg6 {[%emt 0:00:14]} (17... Qxf4 18. Rxf4 Rd8) 18. Qg5 {[%emt 0:00:15]} (18. Ba3 $142 {Qd6 would be deadly.} O-O-O 19. Kh1) 18... Qh7 $2 {[%emt 0:00:56]} (18... Nh7 19. Qxg6 Bxg6) 19. cxd5 {[%emt 0:05:50]} cxd5 {[%emt 0:00:51] [#]} (19... Nxd5 $142 20. e4 f6) 20. Rxf5 $2 {[%emt 0:01:23]} Qxf5 {[%emt 0:04:38]} 21. Qxf5 {[%emt 0:00:09]} (21. Qxg7 $2 Rg8 22. Nb5 (22. e4 $2 Qf4 $19) 22... Rxg7 $19) 21... exf5 {[%emt 0:00:17]} 22. Nxd5 {[%emt 0:00:17]} Nxd5 {[%emt 0:01:36]} 23. Bxd5 {[%emt 0:00:14]} Rc8 {[%emt 0:02:06]} 24. Rc1 {[%emt 0:00:26]} ({Don't do} 24. Bxb7 Rc7 $18) 24... Rxc1+ {[%emt 0:01:51]} 25. Bxc1 {[%emt 0:00:02]} b6 {[%emt 0:00:40]} 26. Bc6+ {[%emt 0:00:44]} Kd8 {[%emt 0:00:57]} 27. d5 {[%emt 0:00:09]} Ke7 {[%emt 0:01:17]} 28. Ba3+ {[%emt 0:00:56]} Kd8 {[%emt 0:00:20]} 29. d6 {[%emt 0:00:21]} Rh6 {[%emt 0:00:07]} 30. Kf2 {[%emt 0:00:47]} f6 $2 {[%emt 0:00:36]} (30... Rg6 31. Bf3 f6) 31. e4 {[%emt 0:06:05]} (31. Bc1 $142 Rh8 32. Kf3) 31... fxe4 {[%emt 0:00:28]} (31... Rg6 $142) 32. Bxe4 {[%emt 0:00:12] And now Bd3 would win.} g5 $2 {[%emt 0:00:28]} (32... f5) 33. Bf5 {[%emt 0:00:26]} gxh4 {[%emt 0:00:52]} 34. Bb2 {[%emt 0:00:25]} Ke8 {[%emt 0:01:22]} 35. Kg2 {[%emt 0:00:50]} Kf7 {[%emt 0:04:19]} 36. Kh3 {[%emt 0:00:50]} Rh8 {[%emt 0:00:32]} 37. Kxh4 {[%emt 0:00:10]} Rd8 {[%emt 0:04:10]} 38. Ba3 {[%emt 0:02:38]} ({Not} 38. Kxh5 Rxd6 39. a4 Rd1 $16) (38. d7 $142 Rg8 39. Ba3) 38... Rg8 {[%emt 0:01:05]} 39. d7 {[%emt 0:02:45]} (39. Kxh5 $2 {too greedy.} Rg5+ 40. Kh4 Rxf5 $19) 39... Rh8 {[%emt 0:04:38]} 40. Bd6 {[%emt 0:00:09]} b5 {[%emt 0:05:46]} 41. a3 {[%emt 0:32:43] White mates.} a5 {[%emt 0:30:31]} 42. Bc7 {[%emt 0:00:09]} Ke7 {[%emt 0:04:46]} 43. Bxa5 {[%emt 0:00:36]} Ra8 {[%emt 0:00:58]} 44. Bc7 {[%emt 0:02:37]} Rh8 {[%emt 0:00:34]} 45. b4 {[%emt 0:00:16]} Ra8 {[%emt 0:12:47]} 46. d8=Q+ {[%emt 0:00:14]} Rxd8 {[%emt 0:00:05]} 47. Bxd8+ {[%emt 0:00:12]} Kxd8 {[%emt 0:00:13]} 48. Bd3 {[%emt 0:00:05] Weighted Error Value: White=0.60/Black=0.67} 1-0

[Event "1st FIDE Olympiad DIS 2023"]
[Site "Belgrade"]
[Date "2023.02.03"]
[Round "5.19"]
[White "Morales Santos, Natasha"]
[Black "Sarkar, Bappi"]
[Result "0-1"]
[ECO "D35"]
[WhiteElo "1893"]
[BlackElo "1778"]
[Annotator "NA COMBH"]
[PlyCount "76"]
[EventDate "2023.01.30"]
[EventType "team-tourn"]
[EventCountry "SRB"]
[SourceTitle "playchess.com"]
[Source "ChessBase"]
[SourceQuality "1"]
[WhiteTeam "FIDE"]
[BlackTeam "Bangladesh"]
[WhiteTeamCountry "PUR"]
[BlackTeamCountry "BAN"]
[TimeControl "40/5400+30:1800+30"]

1. d4 {[%emt 0:00:03]} d5 {[%emt 0:00:12]} 2. c4 {[%emt 0:00:02]} e6 {[%emt 0:00:15]} 3. Nc3 {[%emt 0:00:14]} Nf6 {[%emt 0:00:20]} 4. cxd5 {[%emt 0:00:27]} exd5 {[%emt 0:00:16]} 5. Bg5 {[%emt 0:00:03]} Be7 {[%emt 0:01:46]} 6. e3 {[%emt 0:00:07]} Bf5 {[%emt 0:04:11] [#]} 7. Qb3 {[%emt 0:08:43]} (7. Bxf6 $1 $16 Bxf6 8. Qb3) 7... c6 {[%emt 0:14:37]} (7... Nbd7 $11) 8. Qxb7 {[%emt 0:04:34]} Qb6 {[%emt 0:02:05]} 9. Qxb6 $1 {[%emt 0:07:54]} (9. Qxa8 $2 {perishes.} Qxb2 10. f3 O-O $19) 9... axb6 {[%emt 0:00:04]} 10. Rc1 {[%emt 0:02:09]} h6 {[%emt 0:01:10]} 11. Bxf6 {[%emt 0:04:49]} Bxf6 {[%emt 0:00:11]} 12. Nf3 {[%emt 0:00:14]} O-O {[%emt 0:03:25]} 13. Be2 {[%emt 0:00:47]} Be6 {[%emt 0:06:35]} 14. a4 {[%emt 0:06:01]} c5 {[%emt 0:13:23]} 15. Bb5 {[%emt 0:06:00]} Na6 {[%emt 0:02:38]} 16. O-O {[%emt 0:05:13]} Nb4 {[%emt 0:00:30]} 17. b3 {[%emt 0:05:02]} Rfc8 {[%emt 0:06:40]} 18. h3 {[%emt 0:01:42]} Rc7 {[%emt 0:02:55]} 19. Ne2 {[%emt 0:15:18]} Rac8 {[%emt 0:00:59]} 20. Rfd1 {[%emt 0:01:28]} c4 {[%emt 0:05:53]} 21. bxc4 {[%emt 0:01:24]} dxc4 {[%emt 0:00:27]} 22. Nc3 {[%emt 0:01:27]} Bd7 {[%emt 0:07:45]} 23. Rb1 $18 {[%emt 0:02:00]} Be7 {[%emt 0:04:19]} 24. e4 {[%emt 0:10:52]} Bxb5 {[%emt 0:09:23]} 25. axb5 {[%emt 0:00:33]} f6 {[%emt 0:02:06]} 26. e5 {[%emt 0:05:35]} fxe5 {[%emt 0:01:58]} 27. Nxe5 {[%emt 0:00:35]} Bd6 {[%emt 0:01:08]} 28. f4 {[%emt 0:00:41]} Nc2 {[%emt 0:00:49]} 29. Kh1 {[%emt 0:01:28]} Ra7 {[%emt 0:03:03]} 30. Nd5 {[%emt 0:07:15]} c3 {[%emt 0:03:24]} 31. Nxb6 {[%emt 0:00:54]} Rb8 {[%emt 0:01:37]} 32. Nbc4 {[%emt 0:01:48]} Na3 {[%emt 0:01:01]} 33. Rb3 {[%emt 0:00:59]} Nxc4 {[%emt 0:00:43]} 34. Nxc4 {[%emt 0:00:03]} Bxf4 {[%emt 0:00:08]} 35. Rxc3 {[%emt 0:00:28]} Rxb5 {[%emt 0:00:07]} 36. Rcd3 {[%emt 0:00:23]} Ra2 {[%emt 0:00:21]} 37. d5 {[%emt 0:00:28]} Rb4 {[%emt 0:00:16]} 38. Ne3 {[%emt 0:01:22]} Kh8 {[%emt 0:00:00]} 0-1

[Event "1st FIDE Olympiad DIS 2023"]
[Site "Belgrade"]
[Date "2023.02.03"]
[Round "5.20"]
[White "Sarkar, Ali Newaz"]
[Black "Rosikhin, Igor"]
[Result "0-1"]
[ECO "B30"]
[WhiteElo "1809"]
[BlackElo "1856"]
[Annotator "NA COMBH"]
[PlyCount "90"]
[EventDate "2023.01.30"]
[EventType "team-tourn"]
[EventCountry "SRB"]
[SourceTitle "playchess.com"]
[Source "ChessBase"]
[SourceQuality "1"]
[WhiteTeam "Bangladesh"]
[BlackTeam "FIDE"]
[WhiteTeamCountry "BAN"]
[BlackTeamCountry "BLR"]
[TimeControl "40/5400+30:1800+30"]

1. e4 {[%emt 0:00:06]} c5 {[%emt 0:00:19]} 2. Nf3 {[%emt 0:00:17]} Nc6 {[%emt 0:00:11]} 3. a3 {[%emt 0:00:32]} g6 {[%emt 0:00:23]} 4. Bc4 {[%emt 0:00:42]} Bg7 {[%emt 0:00:25]} 5. Nc3 {[%emt 0:00:43]} e6 {[%emt 0:07:18]} 6. d3 {[%emt 0:01:13]} Nge7 {[%emt 0:00:19]} 7. Bf4 {[%emt 0:00:47]} d5 {[%emt 0:05:28]} 8. Bb3 {[%emt 0:04:16]} O-O {[%emt 0:06:22]} 9. O-O {[%emt 0:00:31]} h6 {[%emt 0:03:52]} 10. Qd2 {[%emt 0:01:06]} (10. Re1 $11 {might be stronger.}) 10... Kh7 {[%emt 0:03:56]} 11. Rab1 {[%emt 0:00:55]} (11. Qe2 $1 $15) 11... d4 {[%emt 0:10:26]} 12. Ne2 {[%emt 0:03:34]} g5 {[%emt 0:04:45]} (12... e5 $15 13. Bg3 f5 14. exf5 gxf5) 13. Bg3 {[%emt 0:00:30]} (13. Bxg5 $1 $11 {keeps the balance.} hxg5 14. Qxg5) 13... Ng6 {[%emt 0:00:42]} 14. h3 {[%emt 0:00:38] [#]} f5 $1 {[%emt 0:06:06]} 15. exf5 {[%emt 0:01:36]} exf5 {[%emt 0:00:16]} 16. Kh1 {[%emt 0:03:53]} f4 {[%emt 0:04:01]} 17. Bh2 {[%emt 0:00:16]} h5 {[%emt 0:06:52]} 18. Nfg1 {[%emt 0:02:54]} Bh6 {[%emt 0:03:40]} 19. f3 {[%emt 0:01:38]} g4 {[%emt 0:03:27]} 20. Qe1 {[%emt 0:03:58]} g3 {[%emt 0:00:24]} 21. Nxg3 $19 {[%emt 0:00:39]} fxg3 {[%emt 0:00:43]} 22. Bxg3 {[%emt 0:01:01]} h4 {[%emt 0:04:04]} 23. Bh2 {[%emt 0:00:50]} Nf4 {[%emt 0:01:26]} 24. Qf2 {[%emt 0:02:18]} Ne5 {[%emt 0:07:35]} 25. Rbe1 {[%emt 0:01:09]} Neg6 {[%emt 0:00:47]} 26. Ne2 {[%emt 0:01:51]} Nxd3 {[%emt 0:00:20]} 27. Qg1 {[%emt 0:02:55]} Nxe1 {[%emt 0:00:20]} 28. Rxe1 {[%emt 0:00:13]} Bf5 {[%emt 0:01:38]} 29. Nc1 {[%emt 0:00:48]} b5 {[%emt 0:01:28]} 30. Be6 {[%emt 0:00:31]} Be3 {[%emt 0:00:55]} 31. Rxe3 {[%emt 0:01:06]} dxe3 {[%emt 0:00:07]} 32. Bxf5 {[%emt 0:00:10]} Rxf5 {[%emt 0:00:31]} 33. Qxe3 {[%emt 0:00:37]} Qe8 {[%emt 0:00:40]} 34. Qd3 {[%emt 0:01:43]} Rf7 {[%emt 0:02:30]} 35. Qd5 {[%emt 0:01:17]} Rd8 {[%emt 0:01:15]} 36. Qh5+ {[%emt 0:00:13]} Kg7 {[%emt 0:00:13]} 37. Nd3 {[%emt 0:00:05]} Rxd3 {[%emt 0:04:42]} 38. cxd3 {[%emt 0:00:14]} Qe1+ {[%emt 0:00:35]} 39. Bg1 {[%emt 0:00:33]} Qe5 {[%emt 0:00:45]} 40. Qg4 {[%emt 0:00:47]} Qf5 {[%emt 0:00:15]} 41. Bxc5 {[%emt 0:32:36]} Qxc5 {[%emt 0:30:29]} 42. Qe4 {[%emt 0:00:16]} Re7 {[%emt 0:00:15]} 43. d4 {[%emt 0:01:21]} Qc1+ {[%emt 0:00:17]} 44. Kh2 {[%emt 0:01:03]} Rxe4 {[%emt 0:00:10]} 45. fxe4 {[%emt 0:00:17]} Nf4 {[%emt 0:00:14]} 0-1